Cogmind - Beta 9.6 @@@ ROGUE MODE // 2020.09.12 @ 16:32:28 Player: Hermelin Result: Destroyed by 8R-AWN with 8R-AWN's Boregun Performance ------------- Evolutions (1) 500 Regions Visited (5) 1000 Robots Destroyed (38) 190 Value Destroyed (915) 915 Prototype IDs (25) 500 Alien Tech Used (0) 0 Bonus (-41) -41 TOTAL SCORE: 3064 Bonus ------- Follower Combat Kills 163 Aligned with FarCom 300 Friendly Fire -504 Cogmind --------- Core Integrity 0/400 Matter 208/300 Energy 100/100 System Corruption 2% Temperature Cool (0) Movement Core (50) Location -9/Exiles Parts ------- > --- POWER (1) -------- (None) > --- PROPULSION (2) --- (None) > --- UTILITY (3) ------ (None) > --- WEAPON (3) ------- Katana > --- INVENTORY (4) ---- Light Nuclear Core High-capacity Matter Pod (200) Trap Reconfigurator Grenade Launcher Peak State ------------ > --- POWER ------------ Ion Engine > --- PROPULSION ------- Light Treads Compact Wheel > --- UTILITY ---------- Large Storage Unit High-capacity Storage Unit Hardened Light Armor Plating > --- WEAPON ----------- EM Pulse Gun Improved EM Shotgun Light Cannon > --- INVENTORY -------- Ion Engine Nuclear Core Light Nuclear Core Fission Core Light Treads Disposable Heat Sink Medium Storage Unit Large Storage Unit High-capacity Matter Pod Improved Targeting Computer Improved Targeting Computer Core Shielding Assault Rifle Light Assault Rifle Light Assault Rifle Grenade Launcher Katana [Rating: 15] Favorites ----------- Power Ion Engine Engine Ion Engine Propulsion Light Treads Treads Light Treads Wheel Compact Wheel Utility Large Storage Unit Device Disposable Heat Sink Storage Large Storage Unit Processor Improved Targeting Computer Protection Hardened Light Armor Plating Weapon Light Cannon Energy Gun EM Pulse Gun Ballistic Gun Light Assault Rifle Ballistic Cannon Light Cannon Launcher Grenade Launcher Slashing Weapon Katana Build | -11 -10 -10 -9 -9 -9 ------- Run | Scr Mat Min Mat Min Exi Slots Evolved 2 | . . . 2 . . Power . | . . . . . . Propulsion . | . . . . . . Utility 1 | . . . 1 . . Weapon 1 | . . . 1 . . Parts Attached 40 | 7 12 2 5 3 11 Power 5 | 1 1 . . 2 1 Engine 5 | 1 1 . . 2 1 Core . | . . . . . . Reactor . | . . . . . . Propulsion 10 | 2 4 1 1 . 2 Treads 6 | 1 3 . 1 . 1 Leg . | . . . . . . Wheel 4 | 1 1 1 . . 1 Hover . | . . . . . . Flight . | . . . . . . Utility 9 | 2 3 . 2 . 2 Device 1 | . . . 1 . . Storage 5 | 2 3 . . . . Processor 1 | . . . . . 1 Hackware . | . . . . . . Protection 2 | . . . 1 . 1 Artifact . | . . . . . . Weapon 16 | 2 4 1 2 1 6 Energy Gun 6 | 2 1 1 1 . 1 Energy Cannon . | . . . . . . Ballistic Gun 5 | . 1 . 1 . 3 Ballistic Cannon 3 | . 2 . . 1 . Launcher 1 | . . . . . 1 Special Weapon . | . . . . . . Impact Weapon . | . . . . . . Slashing Weapon 1 | . . . . . 1 Piercing Weapon . | . . . . . . Special Melee Weapon . | . . . . . . Unidentified Prototypes 1 | . . . 1 . . Parts Lost 16 | . 3 1 1 . 11 Power 2 | . . . 1 . 1 Propulsion 5 | . 2 . . . 3 Utility 3 | . . . . . 3 Weapon 6 | . 1 1 . . 4 Highest Loss Streak 10 | . 3 1 1 . 10 Average Slot Usage (%) 98 | . 98 100 100 100 95 Engine 11 | . 14 14 11 11 10 Treads 14 | . 14 14 11 11 16 Wheel 8 | . 12 14 11 11 3 Storage 21 | . 28 28 22 22 15 Protection 8 | . . . 2 11 16 Energy Gun 13 | . 15 6 18 22 10 Ballistic Gun 5 | . 3 . 3 . 10 Ballistic Cannon 9 | . 9 21 11 11 5 Launcher 1 | . . . . . 4 Naked Turns . | . . . . . . Heaviest Build 66 | 16 59 59 66 66 66 Greatest Support 40 | 20 40 16 20 16 40 Greatest Overweight (x) 4 | . 4 3 4 4 4 Average Overweight (x) 2 | . 2 3 3 4 2 Largest Inventory Capacity 18 | 8 18 18 18 18 18 Average Capacity 15 | 7 14 18 18 18 14 Most Carried 18 | 6 17 18 18 18 18 Average Carried 14 | 3 12 17 17 17 13 Final Capacity 18 | 8 18 18 18 18 4 Final Carried 18 | 5 17 18 18 18 4 Class Distribution -------------------- 39% | Tank 38% | Mutant 17% | Scavenger-Mutant 4% | Gunner Dominant Class ---------------- Mutant | -10/Materials Mutant | -10/Mines Gunner | -9/Materials Tank | -9/Mines Tank | -9/Exiles Resources | -11 -10 -10 -9 -9 -9 ----------- Run | Scr Mat Min Mat Min Exi Matter Collected 1070 | 270 218 314 83 135 50 Remotely . | . . . . . . Salvage Created 1160 | 98 448 147 195 245 27 Parts 52 | 2 24 5 10 11 . Haulers Intercepted 3 | . 1 . 2 . . Recyclers Shooed 1 | . . . 1 . . Parts Field Recycled . | . . . . . . Retrieved Matter . | . . . . . . Parts Self-Destructed . | . . . . . . Prevented . | . . . . . . Kills | -11 -10 -10 -9 -9 -9 ------- Run | Scr Mat Min Mat Min Exi Combat Hostiles Destroyed 27 | . 12 4 1 8 2 Guns 13 | . 5 1 1 5 1 Cannons 11 | . 7 3 . 1 . AOE 3 | . . . . 2 1 Classes Destroyed 7 | 1 4 . 1 . 1 Worker 1 | . . . 1 . . Hauler 3 | . 1 . 2 . . Recycler 1 | 1 . . . . . Watcher 3 | . 1 . 2 . . Swarmer 6 | . 3 . . 3 . Grunt 19 | . 9 4 1 5 . Assembled 5 | . . . . . 5 Best Kill Streak 7 | 1 7 2 4 3 2 Combat Bots Only 7 | . 7 2 1 3 2 Max Kills in Single Turn 3 | 1 1 1 1 3 3 Gunslinging . | . . . . . . Exploded 2 | . . . . 2 1 Melee . | . . . . . . Uniques/NPCs Destroyed 1 | . . . . . 1 EX-HEX (-9/Exiles) Combat | -11 -10 -10 -9 -9 -9 -------- Run | Scr Mat Min Mat Min Exi Damage Taken 2220 | . 641 201 179 198 1001 Core 564 | . 118 27 28 65 326 Absorbed by Shields . | . . . . . . Core Remaining (%) 71 | 100 . 42 . . . Volleys Fired 131 | 6 52 13 12 18 30 Largest 3 | 1 2 2 3 3 3 Hottest 120 | 50 90 75 120 120 85 Shots Fired 259 | 6 99 25 36 52 41 Gun 171 | 6 65 5 24 34 37 Cannon 84 | . 34 20 12 18 . Launcher 4 | . . . . . 4 Special . | . . . . . . Kinetic 138 | . 53 20 12 18 35 Thermal 52 | 6 46 . . . . Explosive 4 | . . . . . 4 Electromagnetic 65 | . . 5 24 34 2 Robot Hit Streak 11 | 4 9 6 7 8 11 Robot Miss Streak 7 | 1 5 2 6 7 2 Penetration Max . | . . . . . . Secondary Targets 2 | . 2 . . . . Max Gunslinging Chain 1 | . 1 . . . . Shots Hit Robots 183 | 5 60 17 20 32 49 Core Hits 68 | 2 23 6 7 13 17 Critical Hits 2 | . 1 . . . 1 Critical Kills 1 | . 1 . . . . Critical Parts Destroyed . | . . . . . . Melee Attacks 25 | . . . . . 25 Impact . | . . . . . . Slashing 25 | . . . . . 25 Piercing . | . . . . . . Sneak Attacks . | . . . . . . Combat Hostiles . | . . . . . . Follow-up Attacks . | . . . . . . Damage Inflicted 3131 | 61 822 291 338 494 1125 Guns 1416 | 61 535 71 256 256 237 Cannons 614 | . 287 220 40 67 . Explosions 523 | . . . 42 171 310 Melee 578 | . . . . . 578 Ramming . | . . . . . . Kinetic 943 | . 383 220 40 67 233 Thermal 713 | 61 439 . 42 171 . Explosive 310 | . . . . . 310 Electromagnetic 587 | . . 71 256 256 4 Impact . | . . . . . . Slashing 578 | . . . . . 578 Piercing . | . . . . . . Highest Corruption 2 | . . . . . 2 Average Corruption 2 | . . . . . 2 Corruption Purged . | . . . . . . Effects 2 | . . . . . 2 Message Errors 1 | . . . . . 1 Targeting Errors 1 | . . . . . 1 Overload Shots . | . . . . . . Overflow Damage 31 | . . . 8 23 . Projectiles 10 | . . . 8 2 . Explosions 21 | . . . . 21 . Melee . | . . . . . . Knockbacks 4 | . 1 . 1 2 . Impact . | . . . . . . Kinetic 4 | . 1 . 1 2 . Secondary . | . . . . . . Self-Inflicted Damage 93 | . . . 10 83 . Shots 4 | . . . 1 3 . Rammed . | . . . . . . Targets Rammed . | . . . . . . Kicked . | . . . . . . Crushed . | . . . . . . Highest Temperature 381 | 60 381 156 204 276 62 Average Temperature 96 | 30 125 73 84 92 20 Received Heat Transfer 537 | . 330 117 72 12 6 Effects 3 | . 3 . . . . Interference 2 | . 2 . . . . Matter Decay 1 | . 1 . . . . Siege Activations . | . . . . . . Robots Corrupted . | . . . . . . Combat Hostiles . | . . . . . . Parts Fried 2 | . . . 2 . . Impact Corruptions . | . . . . . . Robots Melted . | . . . . . . Combat Hostiles . | . . . . . . Parts Melted 5 | 1 2 . . 2 . Heat Transferred 1501 | 185 1116 . . 200 . Parts Sabotaged . | . . . . . . Parts Stolen . | . . . . . . Parts Stripped . | . . . . . . Power Chain Reactions 1 | . . . 1 . . Missiles Intercepted . | . . . . . . Alert | -11 -10 -10 -9 -9 -9 ------- Run | Scr Mat Min Mat Min Exi Peak Influence 354 | 5 170 118 99 354 . Average Influence 108 | 4 44 39 37 246 . Maximum Alert Level 1 | . . . . 1 . Low Security (%) 76 | 100 100 100 100 31 . Level 1 23 | . . . . 68 . Level 2 . | . . . . . . Level 3 . | . . . . . . Level 4 . | . . . . . . Level 5 . | . . . . . . High Security . | . . . . . . Max Security . | . . . . . . Squads Dispatched 9 | . 4 1 4 . . Investigation 7 | . 4 1 2 . . Extermination . | . . . . . . Reinforcement 2 | . . . 2 . . Assault . | . . . . . . Garrison . | . . . . . . Intercept . | . . . . . . Construction Impeded . | . . . . . . Haulers Reinforced . | . . . . . . Stealth | -11 -10 -10 -9 -9 -9 --------- Run | Scr Mat Min Mat Min Exi Distress Signals 2 | . 1 1 . . . Communications Jammed . | . . . . . . Distress Signals . | . . . . . . Times Spotted 58 | . 17 6 14 16 5 Peak Tracking Total 7 | . 5 2 7 4 4 Tactical Retreats 1 | . . . 1 . . Traps | -11 -10 -10 -9 -9 -9 ------- Run | Scr Mat Min Mat Min Exi Traps Triggered 3 | . 2 . 1 . . Indirectly . | . . . . . . Trap Hack Attempts . | . . . . . . Triggered . | . . . . . . Disarmed . | . . . . . . Reprogrammed . | . . . . . . Reused . | . . . . . . Traps Extracted . | . . . . . . Installed . | . . . . . . Triggered . | . . . . . . Machines | -11 -10 -10 -9 -9 -9 ---------- Run | Scr Mat Min Mat Min Exi Machines Disabled 10 | . . 1 . 6 3 Max in Single Turn 3 | . . 1 . 3 1 Machines Sabotaged . | . . . . . . Garrisons Compromised . | . . . . . . Overloaded Fab Kills . | . . . . . . Fab Network Shutdowns . | . . . . . . Hacking | -11 -10 -10 -9 -9 -9 --------- Run | Scr Mat Min Mat Min Exi Machines Accessed 12 | . 7 1 2 . 2 Terminals 8 | . 6 1 1 . . Fabricators . | . . . . . . Repair Stations . | . . . . . . Recycling Units 1 | . 1 . . . . Scanalyzers 1 | . . . 1 . . Garrison Access . | . . . . . . Total Hacks 45 | . 31 2 10 . 2 Successful 28 | . 16 2 8 . 2 Failed 16 | . 14 . 2 . . Catastrophic 2 | . 2 . . . . Database Lockouts 2 | . 2 . . . . Manual 27 | . 21 3 2 . 1 Terminals 34 | . 29 2 3 . . Fabricators . | . . . . . . Repair Stations . | . . . . . . Recycling Units 2 | . 2 . . . . Scanalyzers 7 | . . . 7 . . Garrison Access . | . . . . . . Terminal Hacks 17 | . 11 2 2 . 2 Record 1 | . . . . . 1 Robot Schematic 1 | . . 1 . . . Robot Analysis 2 | . 1 1 . . . Prototype ID Bank 1 | . 1 . . . . Branch Access Points 1 | . 1 . . . . Terminal Index 2 | . 1 . 1 . . Unreport Threat 1 | . 1 . . . . Locate Traps 2 | . 2 . . . . Recall Investigation 1 | . 1 . . . . Hauler Manifests 1 | . 1 . . . . Registered Components 1 | . 1 . . . . Zone Layout 2 | . 1 . 1 . . EX-Prototype ID Bank 1 | . . . . . 1 Fabricator Hacks . | . . . . . . Repair Station Hacks . | . . . . . . Recycling Unit Hacks 1 | . 1 . . . . Report Inventory 1 | . 1 . . . . Scanalyzer 6 | . . . 6 . . Insert Component 3 | . . . 3 . . Analyze 3 | . . . 3 . . Garrison Access Hacks . | . . . . . . Unauthorized Hacks 4 | . 4 . . . . Terminals 3 | . 3 . . . . Track 2 | . 2 . . . . Botnet 1 | . 1 . . . . Fabricators . | . . . . . . Repair Stations . | . . . . . . Recycling Units 1 | . 1 . . . . Tunnel 1 | . 1 . . . . Scanalyzers . | . . . . . . Garrison Access . | . . . . . . Data Cores Recovered . | . . . . . . Used . | . . . . . . Hacking Detections 10 | . 7 1 2 . . Full Trace Events 5 | . 3 1 1 . . Feedback Events . | . . . . . . Feedback Blocked . | . . . . . . Robot Schematics Acquired 1 | . . 1 . . . Robots Built . | . . . . . . Matter . | . . . . . . Time . | . . . . . . Total Robot Build Rating . | . . . . . . Part Schematics Acquired 3 | . . . 3 . . Parts Built . | . . . . . . Matter . | . . . . . . Time . | . . . . . . Total Part Build Rating . | . . . . . . Parts Repaired . | . . . . . . Time . | . . . . . . Parts Recycled . | . . . . . . Recycled Matter . | . . . . . . Retrieved Matter . | . . . . . . Retrieved Components . | . . . . . . Parts Scanalyzed 3 | . . . 3 . . Part Schematics Acquired 3 | . . . 3 . . Parts Damaged . | . . . . . . Bothacking | -11 -10 -10 -9 -9 -9 ------------ Run | Scr Mat Min Mat Min Exi Used RIF Installer . | . . . . . . Robots Hacked . | . . . . . . Non-combat . | . . . . . . Combat . | . . . . . . Robot Hacks Applied . | . . . . . . Relay Couplers Released . | . . . . . . Robots Rewired . | . . . . . . Allies Hacked . | . . . . . . Hacks Repelled . | . . . . . . Allies | -11 -10 -10 -9 -9 -9 -------- Run | Scr Mat Min Mat Min Exi Total Allies 5 | . . 1 . 4 . Largest Group 4 | . . 1 . 4 2 Highest-Rated Group 71 | . . 31 . 71 39 Highest-Rated Ally 31 | . . 31 . 31 31 Total Orders 1 | . . . . . 1 GOTO 1 | . . . . . 1 Ally Attacks 69 | . . 3 . 35 31 Total Damage 1414 | . . . . 442 972 Kills 13 | . . . . 9 4 Allies Corrupted . | . . . . . . Allies Melted . | . . . . . . Turrets Deployed 3 | . . . . . 3 Intel | -11 -10 -10 -9 -9 -9 ------- Run | Scr Mat Min Mat Min Exi Robot Analysis Total 2 | . 1 1 . . . Derelict Logs Recovered 1 | . . . . 1 . Drone Launches . | . . . . . . Drone Recoveries . | . . . . . . Exploration | -11 -10 -10 -9 -9 -9 ------------- Run | Scr Mat Min Mat Min Exi Turns Passed 3779 | 120 747 469 209 790 1444 Spaces Moved 2180 | 59 458 327 114 503 719 Core 5 | 1 . . . . 4 Treads 518 | 57 52 . 11 . 398 Legs . | . . . . . . Wheels 1657 | 1 406 327 103 503 317 Hover . | . . . . . . Flight . | . . . . . . Fastest Speed 50 | 50 90 130 130 140 50 Average Speed 141 | 156 117 130 139 140 161 Slowest Speed 220 | 160 200 130 220 140 200 Overloaded Moves . | . . . . . . Propulsion Burnouts . | . . . . . . Robots Hopped . | . . . . . . Cave-ins Triggered . | . . . . . . Exploration Rate (%) 61 | 5 73 94 22 90 87 Regions Visited 5 Branch Regions 3 Pre-discovered Areas 3 | . 1 . . 1 1 Known Exits Taken 1 | . 1 . . . . Unknown Exits Taken 4 | 1 . 1 1 1 . Scrap Searched 4 | . . 3 . 1 . Spaces Dug . | . . . . . . Terrain Destroyed 38 | . . . 3 15 20 Melee . | . . . . . . Projectile . | . . . . . . AOE 38 | . . . 3 15 20 Actions | -11 -10 -10 -9 -9 -9 --------- Run | Scr Mat Min Mat Min Exi Total 2626 | 78 573 347 138 551 939 Wait 175 | 1 29 1 3 19 122 Move 2175 | 58 457 326 113 502 719 Hop . | . . . . . . Pick Up 44 | 6 16 3 2 4 13 Fast Attach 13 | 6 5 . 2 . . Attach 16 | 1 3 1 2 1 8 Detach . | . . . . . . Swap 11 | . 4 1 1 2 3 Drop 36 | . 7 2 3 5 19 Fire 131 | 6 52 13 12 18 30 Melee 25 | . . . . . 25 Ram . | . . . . . . Kick . | . . . . . . Crush . | . . . . . . Escape Stasis . | . . . . . . Rewire . | . . . . . . Trap . | . . . . . . Miscellaneous . | . . . . . . Route ------- -11/Scrapyard -10/Materials (discovered 3 exits: *Mat / *Min x2) -10/Mines (discovered 2 exits: *Mat x2) -9/Materials -9/Mines (discovered 3 exits: [*Mat x2] / *Exi) -9/Exiles (discovered 1 exit: [*Min]) History --------- Turn | Location | Event 27 | -11/Scrapyard | Discovered new exit (range 15) 121 | -11/Scrapyard | Entered Materials 302 | -10/Materials | Build established: Mutant 353 | -10/Materials | Discovered new exit (range 14) 371 | -10/Materials | Central database locked down 372 | -10/Materials | Discovered new exit (range 9) 477 | -10/Materials | Identified exit to Mines 684 | -10/Materials | Lost 3 parts (2n1w) 687 | -10/Materials | Destroyed 7 combat bots 718 | -10/Materials | Discovered new exit (range 16) 868 | -10/Materials | Entered Mines 886 | -10/Mines | Received a Mining Laser from a helpful Derelict 1088 | -10/Mines | Core integrity fell below 50% 1245 | -10/Mines | Discovered new exit (range 9) 1320 | -10/Mines | Discovered new exit (range 9) 1337 | -10/Mines | Entered Materials 1337 | -9/Materials | Evolved 2 slots: Utility x1, Weapon x1 1511 | -9/Materials | Discovered new exit (range 14) 1546 | -9/Materials | Entered Mines 1609 | -9/Mines | Learned Materials interactive machine intel 1630 | -9/Mines | Assisted by bots powering up and referring to "LRC-V3" 1781 | -9/Mines | Escorted by a lone wolf Derelict 1784 | -9/Mines | Build established: Tank 1801 | -9/Mines | Learned location of Storage (-8) 1804 | -9/Mines | Deemed a non-threat by the Exiles lab entrance 1805 | -9/Mines | Discovered new exit (range 5) 2016 | -9/Mines | Discovered new exit (range 15) 2071 | -9/Mines | Discovered new exit (range 9) 2336 | -9/Mines | Entered Exiles 2336 | -9/Exiles | Accompanied by 2 allies 2360 | -9/Exiles | Discovered new exit (range 15) 2435 | -9/Exiles | Met 8R-AWN 2459 | -9/Exiles | Met EX-HEX 2511 | -9/Exiles | Met EX-DEC 2549 | -9/Exiles | Visited The Gauntlet 2750 | -9/Exiles | Learned location of Zion (-6) 2892 | -9/Exiles | Met EX-BIN 2919 | -9/Exiles | Aligned with FarCom system 2920 | -9/Exiles | Given EX-Vault access code 2978 | -9/Exiles | Opened EX-Vault 2998 | -9/Exiles | Found Deploy-a-Sentry 3001 | -9/Exiles | Found Deploy-a-Sentry 3004 | -9/Exiles | Found Deploy-a-Sentry 3011 | -9/Exiles | Found Field Lobotomy Kit 3019 | -9/Exiles | Found Trap Reconfigurator 3065 | -9/Exiles | Warned to stay clear of 0b10 Research branches 3162 | -9/Exiles | DAS Turret deployed 3264 | -9/Exiles | DAS Turret deployed 3284 | -9/Exiles | Build established: Scavenger-Mutant 3631 | -9/Exiles | Attacked by the Exiles 3644 | -9/Exiles | DAS Turret deployed 3647 | -9/Exiles | Allies destroyed EX-HEX 3746 | -9/Exiles | Core integrity fell below 50% 3762 | -9/Exiles | Lost 10 parts (1p3n2u4w) 3768 | -9/Exiles | Core integrity fell below 20% 3780 | -9/Exiles | Destroyed by 8R-AWN with 8R-AWN's Boregun Last Messages --------------- 03720_ Penetrated by HV Slug. 03725_ The unstable cave ceiling collapses. 03725_ Dropped Hcp. Storage Unit. 03725_ Dropped Ion Engine. 03725_ HV Slug penetrates Machine. 03725_ Machine disabled. 03731_ Penetrated by HV Slug. 03731_ Imp. Targeting Computer destroyed. 03731_ Penetrated by HV Slug. 03738_ The unstable cave ceiling collapses. 03741_ Penetrated by HV Slug. 03754_ HV Slug penetrates Wall. 03758_ System corrupted: Katana targeting data glitched. 03759_ Penetrated by HV Slug. 03763_ Core Shielding destroyed. 03763_ Penetrated by HV Slug. 03776_ HV Slug penetrates Machine. 03776_ Machine disabled. 03776_ HV Slug penetrates Machine. 03776_ Penetrated by HV Slug. Map ----- +----------------------------------------------------+ | """#?????????????????????????????????????????? | | """#?????????????????????????????????????????? | | """"?????????????????????????????????????????? | | """#?????????????????????????????????????????? | | "X" """??????????????????????????????????????????? | | """ ??????????????????????????????????????????? | | """""""#?????????????????????????????????????????? | | ########?????????????????????????????????????????? | | ?????????????????????????????????????????????????? | | ?????????????????????????????????????????????????# | | ?????????????????????????????????????????????????# | | ???###########???????????????????????????????????# | | ####"""" """"##??????????????????????????????????# | | """ """"##????????????????????????????????## | | "" " #???????????????????????????????## | | """#???????????????????????????????# | | "a"#???????????#####???????????????# | | " "##?????????##" #??????????????## | | "###???????#" #?????????????## | | ""#??????## ##????????????# | | "#????### ###????????### | | ##???# ########## | | ! = ##?## #""""## | | """ !! %=t### | | " ! ! ## | | |!* @g#### | | % "#?#"""""#### | | ; "##?#######??#### * | | ######??????????????#####** | | ;#???????????????????????### | | ##?????????????????????????### | | """ % #????????????????????????????# | | " " ""#" % ##????????????????????????????? | | #""" """## # #????????????????????????????? | | ###""""#### ### ## #????????????????????????????? | | ??######?#### # # ##????????????????????????????? | | ????????????#######??????????????????????????????? | | ?????????????????????????????????????????????????? | | ?????????????????????????????????????????????????? | | ?????????????????????????????????????????????????? | | ?????????????????????????????????????????????????? | | ?????????????????????????????????????????????????? | | ?????????????????????????????????????????????????? | | ?????????????????????????????????????????????????? | | ?????????????????????????????????????????????????? | | ?????????????????????????????????????????????????? | | ?????????????????????????????????????????????????? | | ?????????????????????????????????????????????????? | | ?????????????????????????????????????????????????? | | ?????????????????????????????????????????????????? | +----------------------------------------------------+ Best States ------------- Heat Dissipation 28 Coolant Potential 50 Energy Generation 10 Energy Capacity 250 Matter Stores 300 Matter Capacity 300 Sight Range 16 Terrain Scan Density 10 Armor Coverage 150 Core Shielding 20 Evasion (%) 42 Targeting Accuracy 6 Recoil Reduction 2 Item Schematics ----------------- Imp. Targeting Computer | -9/Materials | Scanalyzed Lrg. Storage Unit | -9/Materials | Scanalyzed Cooling System | -9/Materials | Scanalyzed Robot Schematics ------------------ O-16 Technician | -10/Mines | Hacked Fabricated ------------ Nothing Alien Tech Used ----------------- None Achievements -------------- None Challenges ------------ None Game ------ Seed LayeredHugeBlade Manual? 0 Play Time 00:38:12 Cumulative 230.0 hours Start 2020.09.12 @ 15:49:16 End 2020.09.12 @ 16:32:28 Sessions 1 Manual Loads 0 Difficulty Rogue Special Mode None Game No. 94 Rogue 94 Adventurer 0 Explorer 0 Win Type - Total 3 Types 2/0/0/1/0/0/0 Lore% 85 Gallery% 83 Achievement% 69 Wizard Run 0 Options --------- ASCII 0 Keyboard 0 Movement Numpad Keybinds 0 Fullscreen 1 Font 18/SmallcapsGlow Map View 76x50 Tactical HUD 1 Map Filters NONE Filters NONE Steam 1 RUN: 1d0c3e91-70c7-4e67-8188-774bc7593ba8